[Event "Open NK Rapid 2025"]
[Site "Helmond, Netherlands"]
[Date "2025.05.03"]
[Round "3.2"]
[White "Warmerdam, Max"]
[Black "Ritzerveld, Noah"]
[Result "1-0"]
[TimeControl "15+5"]
[WhiteFideId "1048104"]
[BlackFideId "1085760"]
[WhiteElo "2517"]
[BlackElo "2053"]

1. Nf3 {[%clk 00:15:07]} {[%emt 00:00:02]} d5 {[%clk 00:15:08]} {[%emt
00:00:02]} 2. g3 {[%clk 00:15:10]} {[%emt 00:00:02]} Nf6 {[%clk 00:15:11]}
{[%emt 00:00:02]} 3. Bg2 {[%clk 00:15:13]} {[%emt 00:00:02]} c6 {[%clk
00:15:15]} {[%emt 00:00:02]} 4. c4 {[%clk 00:15:16]} {[%emt 00:00:02]} Bg4
{[%clk 00:15:02]} {[%emt 00:00:17]} 5. h3 {[%clk 00:15:12]} {[%emt 00:00:09]}
Bh5 {[%clk 00:14:54]} {[%emt 00:00:13]} 6. d4 {[%clk 00:15:14]} {[%emt
00:00:03]} e6 {[%clk 00:14:57]} {[%emt 00:00:02]} 7. Nc3 {[%clk 00:15:12]}
{[%emt 00:00:07]} Be7 {[%clk 00:14:57]} {[%emt 00:00:06]} 8. Qb3 {[%clk
00:14:18]} {[%emt 00:00:58]} Qb6 {[%clk 00:14:18]} {[%emt 00:00:45]} 9. Ne5
{[%clk 00:13:38]} {[%emt 00:00:44]} Nbd7 {[%clk 00:13:20]} {[%emt 00:01:03]} 10.
g4 {[%clk 00:12:17]} {[%emt 00:01:25]} Bg6 {[%clk 00:13:08]} {[%emt 00:00:18]}
11. Nxg6 {[%clk 00:11:33]} {[%emt 00:00:50]} hxg6 {[%clk 00:13:10]} {[%emt
00:00:03]} 12. e3 {[%clk 00:11:08]} {[%emt 00:00:29]} O-O-O {[%clk 00:11:03]}
{[%emt 00:02:12]} 13. Bd2 {[%clk 00:10:50]} {[%emt 00:00:23]} Kb8 {[%clk
00:10:00]} {[%emt 00:01:08]} 14. Rc1 {[%clk 00:09:03]} {[%emt 00:01:52]} Qxb3
{[%clk 00:08:55]} {[%emt 00:01:11]} 15. axb3 {[%clk 00:09:06]} {[%emt
00:00:02]} g5 {[%clk 00:08:40]} {[%emt 00:00:20]} 16. Ke2 {[%clk 00:08:49]}
{[%emt 00:00:22]} Nf8 {[%clk 00:08:17]} {[%emt 00:00:29]} 17. Rhd1 {[%clk
00:05:30]} {[%emt 00:03:22]} Ng6 {[%clk 00:08:18]} {[%emt 00:00:04]} 18. Be1
{[%clk 00:05:24]} {[%emt 00:00:11]} Nh4 {[%clk 00:06:19]} {[%emt 00:02:04]} 19.
Bf1 {[%clk 00:05:27]} {[%emt 00:00:02]} Bd6 {[%clk 00:05:27]} {[%emt 00:00:58]}
20. f3 {[%clk 00:04:43]} {[%emt 00:00:49]} Ng6 {[%clk 00:05:20]} {[%emt
00:00:12]} 21. Bf2 {[%clk 00:03:42]} {[%emt 00:01:06]} Bc7 {[%clk 00:05:16]}
{[%emt 00:00:10]} 22. Rc2 {[%clk 00:03:18]} {[%emt 00:00:29]} Rhe8 {[%clk
00:05:15]} {[%emt 00:00:06]} 23. Bg2 {[%clk 00:03:17]} {[%emt 00:00:06]} e5
{[%clk 00:04:04]} {[%emt 00:01:16]} 24. dxe5 {[%clk 00:02:45]} {[%emt
00:00:36]} Bxe5 {[%clk 00:03:36]} {[%emt 00:00:33]} 25. Kf1 {[%clk 00:02:31]}
{[%emt 00:00:20]} Bc7 {[%clk 00:02:56]} {[%emt 00:00:45]} 26. cxd5 {[%clk
00:02:26]} {[%emt 00:00:09]} Nxd5 {[%clk 00:02:52]} {[%emt 00:00:09]} 27. Nxd5
{[%clk 00:02:29]} {[%emt 00:00:02]} Rxd5 {[%clk 00:02:53]} {[%emt 00:00:04]} 28.
Rxd5 {[%clk 00:02:33]} {[%emt 00:00:02]} cxd5 {[%clk 00:02:57]} {[%emt
00:00:01]} 29. Rd2 {[%clk 00:02:29]} {[%emt 00:00:09]} Rd8 {[%clk 00:02:53]}
{[%emt 00:00:09]} 30. Ke2 {[%clk 00:02:21]} {[%emt 00:00:14]} Be5 {[%clk
00:02:32]} {[%emt 00:00:26]} 31. Kd1 {[%clk 00:00:54]} {[%emt 00:01:31]} Kc7
{[%clk 00:02:33]} {[%emt 00:00:04]} 32. Kc2 {[%clk 00:00:56]} {[%emt 00:00:03]}
Kc6 {[%clk 00:02:13]} {[%emt 00:00:26]} 33. b4 {[%clk 00:00:57]} {[%emt
00:00:04]} Bc7 {[%clk 00:01:26]} {[%emt 00:00:52]} 34. Kb3 {[%clk 00:00:59]}
{[%emt 00:00:03]} Bb6 {[%clk 00:01:04]} {[%emt 00:00:27]} 35. Bf1 {[%clk
00:00:39]} {[%emt 00:00:24]} a6 {[%clk 00:00:58]} {[%emt 00:00:11]} 36. Ka4
{[%clk 00:00:30]} {[%emt 00:00:15]} Kd6 {[%clk 00:00:49]} {[%emt 00:00:13]} 37.
Bg3+ {[%clk 00:00:32]} {[%emt 00:00:04]} Ke6 {[%clk 00:00:49]} {[%emt
00:00:05]} 38. Bf2 {[%clk 00:00:17]} {[%emt 00:00:19]} Bc7 {[%clk 00:00:38]}
{[%emt 00:00:16]} 39. b5 {[%clk 00:00:19]} {[%emt 00:00:04]} axb5+ {[%clk
00:00:36]} {[%emt 00:00:06]} 40. Kxb5 {[%clk 00:00:22]} {[%emt 00:00:02]} Ra8
{[%clk 00:00:17]} {[%emt 00:00:25]} 41. Rc2 {[%clk 00:00:19]} {[%emt 00:00:07]}
Be5 {[%clk 00:00:19]} {[%emt 00:00:03]} 42. Kb6 {[%clk 00:00:19]} {[%emt
00:00:06]} Ra2 {[%clk 00:00:20]} {[%emt 00:00:03]} 43. Kxb7 {[%clk 00:00:17]}
{[%emt 00:00:07]} Rxb2+ {[%clk 00:00:23]} {[%emt 00:00:03]} 44. Rxb2 {[%clk
00:00:21]} Bxb2 {[%clk 00:00:26]} {[%emt 00:00:01]} 45. Kb6 {[%clk 00:00:21]}
{[%emt 00:00:06]} Bc3 {[%clk 00:00:17]} {[%emt 00:00:12]} 46. Kb5 {[%clk
00:00:23]} {[%emt 00:00:04]} Be5 {[%clk 00:00:16]} {[%emt 00:00:07]} 47. Bd3
{[%clk 00:00:21]} {[%emt 00:00:06]} Nh4 {[%clk 00:00:17]} {[%emt 00:00:05]} 48.
Be2 {[%clk 00:00:25]} Ng6 {[%clk 00:00:21]} {[%emt 00:00:01]} 49. Kc6 {[%clk
00:00:25]} {[%emt 00:00:05]} Bc3 {[%clk 00:00:22]} {[%emt 00:00:04]} 50. Kc5
{[%clk 00:00:27]} {[%emt 00:00:03]} Be5 {[%clk 00:00:25]} {[%emt 00:00:01]} 51.
Ba6 {[%clk 00:00:23]} {[%emt 00:00:10]} Bd6+ {[%clk 00:00:26]} {[%emt
00:00:04]} 52. Kd4 {[%clk 00:00:26]} {[%emt 00:00:01]} Be5+ {[%clk 00:00:30]}
{[%emt 00:00:02]} 53. Kd3 {[%clk 00:00:29]} {[%emt 00:00:02]} Nh4 {[%clk
00:00:24]} {[%emt 00:00:11]} 54. f4 {[%clk 00:00:30]} {[%emt 00:00:04]} Bf6
{[%clk 00:00:23]} {[%emt 00:00:05]} 55. f5+ {[%clk 00:00:20]} {[%emt 00:00:15]}
Kd6 {[%clk 00:00:23]} {[%emt 00:00:05]} 56. Ke2 {[%clk 00:00:23]} {[%emt
00:00:02]} g6 {[%clk 00:00:18]} {[%emt 00:00:10]} 57. Bd3 {[%clk 00:00:27]}
{[%emt 00:00:01]} gxf5 {[%clk 00:00:17]} {[%emt 00:00:07]} 58. gxf5 {[%clk
00:00:31]} Be5 {[%clk 00:00:11]} {[%emt 00:00:10]} 59. Be1 {[%clk 00:00:32]}
{[%emt 00:00:04]} Ke7 {[%clk 00:00:14]} {[%emt 00:00:02]} 60. Ba5 {[%clk
00:00:36]} {[%emt 00:00:02]} Bd6 {[%clk 00:00:14]} {[%emt 00:00:04]} 61. Bc3
{[%clk 00:00:39]} {[%emt 00:00:03]} Bc7 {[%clk 00:00:13]} {[%emt 00:00:06]} 62.
Bd4 {[%clk 00:00:39]} {[%emt 00:00:04]} Bd6 {[%clk 00:00:16]} {[%emt 00:00:03]}
63. Kf2 {[%clk 00:00:43]} {[%emt 00:00:01]} Bc7 {[%clk 00:00:19]} {[%emt
00:00:02]} 64. e4 {[%clk 00:00:42]} {[%emt 00:00:06]} dxe4 {[%clk 00:00:22]}
{[%emt 00:00:02]} 65. Bxe4 {[%clk 00:00:45]} {[%emt 00:00:01]} Bd6 {[%clk
00:00:20]} {[%emt 00:00:07]} 66. Ke2 {[%clk 00:00:49]} Bc7 {[%clk 00:00:21]}
{[%emt 00:00:04]} 67. Kd3 {[%clk 00:00:53]} {[%emt 00:00:02]} Bd6 {[%clk
00:00:17]} {[%emt 00:00:09]} 68. Kc4 {[%clk 00:00:56]} Kf8 {[%clk 00:00:14]}
{[%emt 00:00:09]} 69. Kd5 {[%clk 00:01:00]} {[%emt 00:00:01]} Ba3 {[%clk
00:00:16]} {[%emt 00:00:03]} 70. Bf6 {[%clk 00:00:57]} {[%emt 00:00:08]} Be7
{[%clk 00:00:16]} {[%emt 00:00:05]} 71. Ke5 {[%clk 00:00:50]} {[%emt 00:00:12]}
Ke8 {[%clk 00:00:16]} {[%emt 00:00:05]} 72. Bg7 {[%clk 00:00:53]} Bd8 {[%clk
00:00:17]} {[%emt 00:00:04]} 73. Bc6+ {[%clk 00:00:54]} {[%emt 00:00:04]} Ke7
{[%clk 00:00:18]} {[%emt 00:00:05]} 74. f6# {[%clk 00:00:58]} {[%emt 00:00:01]}
1-0

[Event "Open NK Rapid 2025"]
[Site "Helmond, Netherlands"]
[Date "2025.05.03"]
[Round "3.3"]
[White "Kshirsagar, Pranav"]
[Black "Peng, Li Min"]
[Result "0-1"]
[TimeControl "15+5"]
[WhiteFideId "1084011"]
[BlackFideId "14112620"]
[WhiteElo "2049"]
[BlackElo "2510"]

1. d4 {[%clk 00:15:09]} Nf6 {[%clk 00:14:59]} {[%emt 00:00:11]} 2. c4 {[%clk
00:15:13]} {[%emt 00:00:02]} e6 {[%clk 00:15:02]} {[%emt 00:00:02]} 3. Nf3
{[%clk 00:15:16]} {[%emt 00:00:02]} c5 {[%clk 00:14:56]} {[%emt 00:00:10]} 4.
d5 {[%clk 00:15:19]} {[%emt 00:00:02]} d6 {[%clk 00:14:57]} {[%emt 00:00:04]} 5.
Nc3 {[%clk 00:15:21]} {[%emt 00:00:04]} exd5 {[%clk 00:14:57]} {[%emt
00:00:05]} 6. cxd5 {[%clk 00:15:24]} {[%emt 00:00:02]} g6 {[%clk 00:14:58]}
{[%emt 00:00:02]} 7. Nd2 {[%clk 00:15:27]} {[%emt 00:00:03]} Bg7 {[%clk
00:14:33]} {[%emt 00:00:30]} 8. e4 {[%clk 00:15:31]} {[%emt 00:00:02]} O-O
{[%clk 00:14:36]} {[%emt 00:00:03]} 9. Be2 {[%clk 00:15:34]} {[%emt 00:00:01]}
Na6 {[%clk 00:13:55]} {[%emt 00:00:46]} 10. O-O {[%clk 00:15:36]} {[%emt
00:00:03]} Nc7 {[%clk 00:13:41]} {[%emt 00:00:19]} 11. a4 {[%clk 00:15:38]}
{[%emt 00:00:03]} b6 {[%clk 00:13:28]} {[%emt 00:00:17]} 12. Nc4 {[%clk
00:15:39]} {[%emt 00:00:04]} Re8 {[%clk 00:12:47]} {[%emt 00:00:47]} 13. f3
{[%clk 00:14:38]} {[%emt 00:01:06]} Ba6 {[%clk 00:12:48]} {[%emt 00:00:03]} 14.
Bf4 {[%clk 00:14:17]} {[%emt 00:00:26]} Nh5 {[%clk 00:12:00]} {[%emt 00:00:54]}
15. Be3 {[%clk 00:13:14]} {[%emt 00:01:07]} Bxc4 {[%clk 00:11:45]} {[%emt
00:00:20]} 16. Bxc4 {[%clk 00:13:16]} {[%emt 00:00:03]} a6 {[%clk 00:11:49]}
{[%emt 00:00:01]} 17. Qd3 {[%clk 00:10:34]} {[%emt 00:02:48]} Nf6 {[%clk
00:08:11]} {[%emt 00:03:43]} 18. Rae1 {[%clk 00:09:51]} {[%emt 00:00:47]} Nd7
{[%clk 00:08:09]} {[%emt 00:00:08]} 19. f4 {[%clk 00:09:20]} {[%emt 00:00:36]}
b5 {[%clk 00:05:31]} {[%emt 00:02:44]} 20. Ba2 {[%clk 00:06:38]} {[%emt
00:02:47]} c4 {[%clk 00:05:14]} {[%emt 00:00:21]} 21. Qc2 {[%clk 00:06:41]}
{[%emt 00:00:02]} b4 {[%clk 00:05:15]} {[%emt 00:00:04]} 22. Ne2 {[%clk
00:05:58]} {[%emt 00:00:48]} b3 {[%clk 00:05:18]} {[%emt 00:00:01]} 23. Qxc4
{[%clk 00:06:02]} {[%emt 00:00:02]} bxa2 {[%clk 00:05:21]} {[%emt 00:00:01]} 24.
Ng3 {[%clk 00:05:50]} {[%emt 00:00:17]} Bxb2 {[%clk 00:05:02]} {[%emt
00:00:25]} 25. Qxa2 {[%clk 00:05:54]} {[%emt 00:00:01]} Bg7 {[%clk 00:05:02]}
{[%emt 00:00:05]} 26. Qa3 {[%clk 00:05:47]} {[%emt 00:00:12]} Qe7 {[%clk
00:03:16]} {[%emt 00:01:52]} 27. Rc1 {[%clk 00:05:50]} {[%emt 00:00:01]} Nxd5
{[%clk 00:03:17]} {[%emt 00:00:04]} 28. Bd2 {[%clk 00:04:16]} {[%emt 00:01:39]}
N5f6 {[%clk 00:03:20]} {[%emt 00:00:02]} 29. Rfe1 {[%clk 00:04:20]} {[%emt
00:00:01]} Ng4 {[%clk 00:03:24]} {[%emt 00:00:01]} 30. Rc4 {[%clk 00:02:55]}
{[%emt 00:01:29]} Nb6 {[%clk 00:02:46]} {[%emt 00:00:44]} 31. Rb4 {[%clk
00:02:55]} {[%emt 00:00:05]} a5 {[%clk 00:02:49]} {[%emt 00:00:01]} 0-1

[Event "Open NK Rapid 2025"]
[Site "Helmond, Netherlands"]
[Date "2025.05.03"]
[Round "3.4"]
[White "Beerdsen, Thomas"]
[Black "Van Ravensteijn, Antal"]
[Result "1-0"]
[TimeControl "15+5"]
[WhiteFideId "1030108"]
[BlackFideId "1060759"]
[WhiteElo "2485"]
[BlackElo "2048"]

1. e4 {[%clk 00:14:59]} {[%emt 00:00:10]} d5 {[%clk 00:15:07]} {[%emt
00:00:03]} 2. exd5 {[%clk 00:15:02]} {[%emt 00:00:03]} Qd7 {[%emt 00:00:02]} 3.
d6 Qxd6 {[%clk 00:15:10]} 4. Nc3 {[%clk 00:15:05]} {[%emt 00:00:02]} Qd8 {[%clk
00:15:14]} 5. d4 {[%clk 00:14:56]} {[%emt 00:00:14]} Nf6 {[%clk 00:15:17]}
{[%emt 00:00:02]} 6. Nf3 {[%clk 00:14:59]} {[%emt 00:00:02]} g6 {[%clk
00:15:20]} {[%emt 00:00:02]} 7. Bc4 {[%clk 00:14:58]} {[%emt 00:00:06]} Bg7
{[%clk 00:15:24]} {[%emt 00:00:02]} 8. Ne5 {[%clk 00:14:57]} {[%emt 00:00:05]}
O-O {[%clk 00:15:20]} {[%emt 00:00:09]} 9. Bg5 {[%clk 00:14:55]} {[%emt
00:00:07]} Nbd7 {[%clk 00:14:57]} {[%emt 00:00:28]} 10. O-O {[%clk 00:14:53]}
{[%emt 00:00:07]} Nb6 {[%clk 00:14:49]} {[%emt 00:00:13]} 11. Bb3 {[%clk
00:14:53]} {[%emt 00:00:05]} a5 {[%clk 00:14:50]} {[%emt 00:00:04]} 12. a4
{[%clk 00:14:53]} {[%emt 00:00:05]} c6 {[%clk 00:14:39]} {[%emt 00:00:17]} 13.
Qe2 {[%clk 00:14:42]} {[%emt 00:00:15]} Nbd5 {[%clk 00:13:39]} {[%emt
00:01:05]} 14. Rfe1 {[%clk 00:14:42]} {[%emt 00:00:05]} Be6 {[%clk 00:13:23]}
{[%emt 00:00:22]} 15. Nd3 {[%clk 00:14:40]} {[%emt 00:00:06]} Qb8 {[%clk
00:12:16]} {[%emt 00:01:12]} 16. h3 {[%clk 00:14:23]} {[%emt 00:00:22]} Re8
{[%clk 00:11:52]} {[%emt 00:00:30]} 17. Nc5 {[%clk 00:14:22]} {[%emt 00:00:05]}
Nxc3 {[%clk 00:11:28]} {[%emt 00:00:29]} 18. bxc3 {[%clk 00:14:23]} {[%emt
00:00:03]} Bxb3 {[%clk 00:11:20]} {[%emt 00:00:14]} 19. cxb3 {[%clk 00:14:19]}
{[%emt 00:00:09]} b6 {[%clk 00:11:01]} {[%emt 00:00:24]} 20. Nd3 {[%clk
00:13:43]} {[%emt 00:00:41]} Nd5 {[%clk 00:10:44]} {[%emt 00:00:22]} 21. Bd2
{[%clk 00:13:46]} {[%emt 00:00:02]} c5 {[%clk 00:10:17]} {[%emt 00:00:33]} 22.
Qf3 {[%clk 00:13:28]} {[%emt 00:00:22]} Qd6 {[%clk 00:09:52]} {[%emt 00:00:31]}
23. dxc5 {[%clk 00:13:19]} {[%emt 00:00:13]} bxc5 {[%clk 00:09:48]} {[%emt
00:00:09]} 24. Nb2 {[%clk 00:13:00]} {[%emt 00:00:23]} Nb6 {[%clk 00:09:14]}
{[%emt 00:00:40]} 25. Bg5 {[%clk 00:12:48]} {[%emt 00:00:16]} Qd5 {[%clk
00:08:41]} {[%emt 00:00:39]} 26. Qxd5 {[%clk 00:11:44]} {[%emt 00:01:09]} Nxd5
{[%clk 00:08:44]} {[%emt 00:00:02]} 27. Rad1 {[%clk 00:11:44]} {[%emt
00:00:05]} Nxc3 {[%clk 00:08:18]} {[%emt 00:00:32]} 28. Rd7 {[%clk 00:11:45]}
{[%emt 00:00:03]} e6 {[%clk 00:08:10]} {[%emt 00:00:13]} 29. Nc4 {[%clk
00:11:35]} {[%emt 00:00:15]} h6 {[%clk 00:07:31]} {[%emt 00:00:44]} 30. Be3
{[%clk 00:11:27]} {[%emt 00:00:12]} Bd4 {[%clk 00:05:36]} {[%emt 00:02:01]} 31.
Bxh6 {[%clk 00:10:16]} {[%emt 00:01:15]} Nd5 {[%clk 00:05:30]} {[%emt
00:00:12]} 32. Bd2 {[%clk 00:10:04]} {[%emt 00:00:17]} Nb4 {[%clk 00:03:43]}
{[%emt 00:01:52]} 33. Re4 {[%clk 00:09:38]} {[%emt 00:00:30]} Red8 {[%clk
00:03:35]} {[%emt 00:00:15]} 34. Rb7 {[%clk 00:08:54]} {[%emt 00:00:48]} Ra6
{[%clk 00:03:05]} {[%emt 00:00:35]} 35. Bg5 {[%clk 00:08:47]} {[%emt 00:00:11]}
Rd5 {[%clk 00:02:52]} {[%emt 00:00:19]} 36. Rb8+ {[%clk 00:08:43]} {[%emt
00:00:08]} Kg7 {[%clk 00:02:52]} {[%emt 00:00:06]} 37. Be7 {[%clk 00:08:22]}
{[%emt 00:00:26]} Nd3 {[%clk 00:02:38]} {[%emt 00:00:19]} 38. Ne3 {[%clk
00:07:52]} {[%emt 00:00:35]} Bxe3 {[%clk 00:01:45]} {[%emt 00:00:59]} 39. fxe3
{[%clk 00:07:54]} {[%emt 00:00:02]} f5 {[%clk 00:01:31]} {[%emt 00:00:18]} 40.
Rh4 {[%clk 00:07:54]} {[%emt 00:00:05]} g5 {[%clk 00:01:07]} {[%emt 00:00:30]}
41. Bxg5 {[%clk 00:07:48]} {[%emt 00:00:09]} Ne5 {[%clk 00:00:55]} {[%emt
00:00:19]} 42. Bf4 {[%clk 00:07:37]} {[%emt 00:00:17]} Ng6 {[%clk 00:00:46]}
{[%emt 00:00:14]} 43. Rb7+ {[%clk 00:07:39]} {[%emt 00:00:02]} Kf6 {[%clk
00:00:49]} {[%emt 00:00:02]} 44. Rhh7 {[%clk 00:07:43]} Rd1+ {[%clk 00:00:44]}
{[%emt 00:00:10]} 45. Kh2 {[%clk 00:07:47]} {[%emt 00:00:01]} e5 {[%clk
00:00:47]} {[%emt 00:00:02]} 46. Rhf7+ {[%clk 00:07:50]} {[%emt 00:00:02]} Ke6
{[%clk 00:00:49]} {[%emt 00:00:03]} 47. Bg5 {[%clk 00:07:53]} {[%emt 00:00:02]}
Rad6 {[%clk 00:00:46]} {[%emt 00:00:08]} 48. Rf6+ {[%clk 00:07:38]} {[%emt
00:00:20]} Kd5 {[%clk 00:00:48]} {[%emt 00:00:03]} 49. Rxd6+ {[%clk 00:07:42]}
{[%emt 00:00:02]} Kxd6 {[%clk 00:00:52]} 50. Rb6+ {[%clk 00:07:46]} {[%emt
00:00:01]} Kd5 {[%clk 00:00:42]} {[%emt 00:00:15]} 51. Rxg6 {[%clk 00:07:48]}
{[%emt 00:00:02]} Ke4 {[%clk 00:00:44]} {[%emt 00:00:03]} 52. Ra6 {[%clk
00:07:47]} {[%emt 00:00:06]} f4 {[%clk 00:00:19]} {[%emt 00:00:30]} 53. exf4
{[%clk 00:07:50]} {[%emt 00:00:02]} exf4 {[%clk 00:00:23]} {[%emt 00:00:01]} 54.
Bxf4 {[%clk 00:07:52]} {[%emt 00:00:03]} 1-0

[Event "Open NK Rapid 2025"]
[Site "Helmond, Netherlands"]
[Date "2025.05.03"]
[Round "3.5"]
[White "Thodam, Malte"]
[Black "Dgebuadze, Alexandre"]
[Result "0-1"]
[TimeControl "15+5"]
[WhiteFideId "24687120"]
[BlackFideId "203882"]
[WhiteElo "2044"]
[BlackElo "2454"]

1. Nf3 {[%clk 00:15:05]} {[%emt 00:00:04]} d6 {[%clk 00:15:09]} {[%emt
00:00:01]} 2. d4 {[%clk 00:15:00]} {[%emt 00:00:11]} Nf6 {[%clk 00:15:09]}
{[%emt 00:00:05]} 3. c4 {[%clk 00:14:59]} {[%emt 00:00:06]} g6 {[%clk
00:15:11]} {[%emt 00:00:03]} 4. g3 {[%clk 00:15:02]} {[%emt 00:00:02]} Bf5
{[%clk 00:15:11]} {[%emt 00:00:05]} 5. Bg2 {[%clk 00:15:01]} {[%emt 00:00:06]}
Qc8 {[%clk 00:15:15]} {[%emt 00:00:01]} 6. Nc3 {[%clk 00:14:48]} {[%emt
00:00:19]} Bg7 {[%clk 00:14:57]} {[%emt 00:00:22]} 7. O-O {[%clk 00:14:49]}
{[%emt 00:00:04]} Bh3 {[%clk 00:14:51]} {[%emt 00:00:11]} 8. Re1 {[%clk
00:14:16]} {[%emt 00:00:38]} Bxg2 {[%clk 00:14:53]} {[%emt 00:00:03]} 9. Kxg2
{[%clk 00:14:19]} {[%emt 00:00:02]} Nc6 {[%clk 00:14:43]} {[%emt 00:00:15]} 10.
e4 {[%clk 00:14:08]} {[%emt 00:00:16]} O-O {[%clk 00:14:27]} {[%emt 00:00:22]}
11. h3 {[%clk 00:12:54]} {[%emt 00:01:18]} Nd7 {[%clk 00:14:02]} {[%emt
00:00:29]} 12. Be3 {[%clk 00:11:39]} {[%emt 00:01:21]} e5 {[%clk 00:13:37]}
{[%emt 00:00:31]} 13. d5 {[%clk 00:11:18]} {[%emt 00:00:26]} Nd8 {[%clk
00:13:11]} {[%emt 00:00:30]} 14. Qd2 {[%clk 00:11:02]} {[%emt 00:00:21]} f5
{[%clk 00:13:11]} {[%emt 00:00:05]} 15. Bh6 {[%clk 00:10:29]} {[%emt 00:00:38]}
Bxh6 {[%clk 00:12:27]} {[%emt 00:00:50]} 16. Qxh6 {[%clk 00:10:31]} {[%emt
00:00:02]} Nf7 {[%clk 00:11:55]} {[%emt 00:00:38]} 17. Qd2 {[%clk 00:09:44]}
{[%emt 00:00:52]} f4 {[%clk 00:11:49]} {[%emt 00:00:10]} 18. b4 {[%clk
00:07:41]} {[%emt 00:02:09]} Qd8 {[%clk 00:10:51]} {[%emt 00:01:03]} 19. h4
{[%clk 00:06:28]} {[%emt 00:01:18]} g5 {[%clk 00:10:11]} {[%emt 00:00:45]} 20.
Rh1 {[%clk 00:04:11]} {[%emt 00:02:21]} a5 {[%clk 00:09:34]} {[%emt 00:00:43]}
21. Rab1 {[%clk 00:03:47]} {[%emt 00:00:28]} axb4 {[%clk 00:09:13]} {[%emt
00:00:27]} 22. Rxb4 {[%clk 00:03:50]} {[%emt 00:00:02]} Nc5 {[%clk 00:09:06]}
{[%emt 00:00:12]} 23. Qe2 {[%clk 00:03:29]} {[%emt 00:00:26]} g4 {[%emt
00:00:09]} 0-1

[Event "Open NK Rapid 2025"]
[Site "Helmond, Netherlands"]
[Date "2025.05.03"]
[Round "3.6"]
[White "Schneider, Ilja"]
[Black "Aarts, Joaquin"]
[Result "1-0"]
[TimeControl "15+5"]
[WhiteFideId "4663306"]
[BlackFideId "1078224"]
[WhiteElo "2438"]
[BlackElo "2027"]

1. e4 {[%clk 00:15:08]} {[%emt 00:00:02]} c5 {[%clk 00:15:08]} {[%emt
00:00:03]} 2. Nc3 {[%clk 00:15:12]} {[%emt 00:00:01]} Nc6 {[%clk 00:15:11]}
{[%emt 00:00:02]} 3. Bb5 {[%clk 00:15:15]} {[%emt 00:00:01]} Nd4 {[%clk
00:15:14]} {[%emt 00:00:01]} 4. Nf3 {[%clk 00:15:19]} {[%emt 00:00:01]} e6
{[%clk 00:15:17]} {[%emt 00:00:03]} 5. O-O {[%clk 00:15:22]} {[%emt 00:00:02]}
a6 {[%clk 00:15:18]} {[%emt 00:00:04]} 6. Bd3 {[%clk 00:15:26]} {[%emt
00:00:01]} Nc6 {[%clk 00:15:21]} {[%emt 00:00:03]} 7. Nd5 {[%clk 00:15:30]} Bd6
{[%clk 00:15:24]} {[%emt 00:00:01]} 8. Ne3 {[%clk 00:15:33]} {[%emt 00:00:02]}
Bc7 {[%clk 00:15:13]} {[%emt 00:00:16]} 9. Re1 {[%clk 00:15:37]} Nf6 {[%clk
00:15:12]} {[%emt 00:00:06]} 10. c3 {[%clk 00:15:40]} {[%emt 00:00:02]} O-O
{[%clk 00:15:12]} {[%emt 00:00:05]} 11. Bc2 {[%clk 00:15:43]} {[%emt 00:00:02]}
d5 {[%clk 00:15:14]} {[%emt 00:00:04]} 12. exd5 {[%clk 00:15:39]} {[%emt
00:00:08]} exd5 {[%clk 00:15:18]} 13. d4 {[%clk 00:15:43]} {[%emt 00:00:02]}
cxd4 {[%clk 00:15:21]} {[%emt 00:00:01]} 14. Nxd4 {[%clk 00:15:44]} {[%emt
00:00:02]} Qd6 {[%clk 00:15:07]} {[%emt 00:00:21]} 15. Nf3 {[%clk 00:14:36]}
{[%emt 00:01:14]} Be6 {[%clk 00:10:35]} {[%emt 00:04:36]} 16. Nf5 {[%clk
00:14:29]} {[%emt 00:00:12]} Qd7 {[%clk 00:10:33]} {[%emt 00:00:07]} 17. N3d4
{[%clk 00:12:29]} {[%emt 00:02:05]} Nxd4 {[%clk 00:10:14]} {[%emt 00:00:24]} 18.
Nxd4 {[%clk 00:12:33]} {[%emt 00:00:02]} Qd6 {[%clk 00:10:04]} {[%emt
00:00:14]} 19. g3 {[%clk 00:12:27]} {[%emt 00:00:11]} Bg4 {[%clk 00:07:56]}
{[%emt 00:02:12]} 20. Qd3 {[%clk 00:12:14]} {[%emt 00:00:19]} h6 {[%clk
00:06:51]} {[%emt 00:01:10]} 21. Bf4 {[%clk 00:11:53]} {[%emt 00:00:26]} Qd7
{[%clk 00:06:50]} {[%emt 00:00:06]} 22. Bxc7 {[%clk 00:11:31]} {[%emt
00:00:27]} Qxc7 {[%clk 00:06:54]} 23. Re3 {[%clk 00:11:21]} {[%emt 00:00:14]}
g6 {[%clk 00:05:39]} {[%emt 00:01:20]} 24. Rae1 {[%clk 00:11:11]} {[%emt
00:00:16]} Rad8 {[%clk 00:05:41]} {[%emt 00:00:03]} 25. Kg2 {[%clk 00:10:33]}
{[%emt 00:00:43]} Qc8 {[%clk 00:05:26]} {[%emt 00:00:19]} 26. Re7 {[%clk
00:10:32]} {[%emt 00:00:07]} Bh3+ {[%clk 00:05:20]} {[%emt 00:00:11]} 27. Kg1
{[%clk 00:10:36]} {[%emt 00:00:01]} Rd7 {[%clk 00:05:11]} {[%emt 00:00:14]} 28.
Qf3 {[%clk 00:10:05]} {[%emt 00:00:36]} Kg7 {[%clk 00:04:33]} {[%emt 00:00:43]}
29. Ne6+ {[%clk 00:09:50]} {[%emt 00:00:20]} Bxe6 {[%clk 00:04:26]} {[%emt
00:00:12]} 30. R1xe6 {[%clk 00:09:54]} {[%emt 00:00:01]} Ne4 {[%clk 00:03:00]}
{[%emt 00:01:31]} 31. Bxe4 {[%clk 00:08:32]} {[%emt 00:01:27]} dxe4 {[%clk
00:03:04]} {[%emt 00:00:01]} 32. Qxe4 {[%clk 00:08:04]} {[%emt 00:00:33]} Rxe7
{[%clk 00:02:41]} {[%emt 00:00:28]} 33. Rxe7 {[%clk 00:08:08]} b5 {[%clk
00:02:00]} {[%emt 00:00:46]} 34. Kg2 {[%clk 00:07:22]} {[%emt 00:00:51]} Kg8
{[%clk 00:01:12]} {[%emt 00:00:53]} 35. Qd5 {[%clk 00:06:11]} {[%emt 00:01:16]}
h5 {[%clk 00:00:46]} {[%emt 00:00:30]} 36. Rd7 {[%clk 00:06:00]} {[%emt
00:00:17]} Kg7 {[%clk 00:00:16]} {[%emt 00:00:35]} 37. h4 {[%clk 00:05:54]}
{[%emt 00:00:11]} Qa8 {[%clk 00:00:09]} {[%emt 00:00:12]} 38. Rxf7+ {[%clk
00:05:54]} {[%emt 00:00:05]} Kh6 {[%clk 00:00:07]} {[%emt 00:00:07]} 39. Rb7
{[%clk 00:05:37]} {[%emt 00:00:22]} Rf5 {[%clk 00:00:07]} {[%emt 00:00:05]} 40.
Qd2+ {[%clk 00:05:36]} {[%emt 00:00:05]} 1-0